[Event "Late-Titled-Tuesday-Blitz-February-06-2024"]
[Site "Chess.com"]
[Date "2024.02.06"]
[Round "5"]
[White "nihalsarin"]
[Black "DanielDardha2005"]
[Result "1-0"]
[WhiteElo "3108"]
[BlackElo "2907"]
[TimeControl "180+1"]
[EndTime "14:54:46 PST"]
[Termination "nihalsarin won by resignation"]

1. Nf3 {[%clk 0:02:51.3]} 1... d5 {[%clk 0:02:56.1]} 2. e3 {[%clk 0:02:49.6]}
2... Nf6 {[%clk 0:02:54.8]} 3. c4 {[%clk 0:02:50.3]} 3... e6 {[%clk 0:02:55.1]}
4. Nc3 {[%clk 0:02:51.1]} 4... dxc4 {[%clk 0:02:53.1]} 5. Bxc4 {[%clk
0:02:50.6]} 5... a6 {[%clk 0:02:52.6]} 6. O-O {[%clk 0:02:51]} 6... c5 {[%clk
0:02:52.2]} 7. b3 {[%clk 0:02:50.8]} 7... Be7 {[%clk 0:02:49.1]} 8. Bb2 {[%clk
0:02:50.4]} 8... O-O {[%clk 0:02:47.3]} 9. d4 {[%clk 0:02:51.1]} 9... b5 {[%clk
0:02:46.9]} 10. Be2 {[%clk 0:02:51]} 10... Nc6 {[%clk 0:02:45.7]} 11. dxc5
{[%clk 0:02:49.9]} 11... Bb7 {[%clk 0:02:22.5]} 12. Rc1 {[%clk 0:02:47.4]} 12...
Rc8 {[%clk 0:02:17.2]} 13. Qc2 {[%clk 0:02:39.5]} 13... Bxc5 {[%clk 0:02:12.6]}
14. Rfd1 {[%clk 0:02:39.4]} 14... Qe7 {[%clk 0:02:02.3]} 15. Ng5 {[%clk
0:02:39.5]} 15... Nb4 {[%clk 0:01:56.8]} 16. Qb1 {[%clk 0:02:39.5]} 16... g6
{[%clk 0:01:56.6]} 17. a3 {[%clk 0:02:12.8]} 17... Nbd5 {[%clk 0:01:44.7]} 18.
Nxd5 {[%clk 0:02:13.4]} 18... Bxd5 {[%clk 0:01:41.4]} 19. b4 {[%clk 0:02:09.1]}
19... Bb6 {[%clk 0:01:33.2]} 20. Qa1 {[%clk 0:02:09.2]} 20... Rxc1 {[%clk
0:01:20.6]} 21. Rxc1 {[%clk 0:02:10.1]} 21... Nd7 {[%clk 0:01:18.7]} 22. h4
{[%clk 0:02:02.6]} 22... e5 {[%clk 0:01:01.9]} 23. Rd1 {[%clk 0:02:00.5]} 23...
Bc6 {[%clk 0:00:59.6]} 24. Bf3 {[%clk 0:01:59]} 24... Bxf3 {[%clk 0:00:58.7]}
25. Nxf3 {[%clk 0:01:59.7]} 25... f6 {[%clk 0:00:57.5]} 26. Qa2+ {[%clk
0:01:56.6]} 26... Qf7 {[%clk 0:00:55.5]} 27. Qb1 {[%clk 0:01:56]} 27... Rd8
{[%clk 0:00:54.2]} 28. Rd6 {[%clk 0:01:52.3]} 28... Bc7 {[%clk 0:00:38.7]} 29.
Rxa6 {[%clk 0:01:26.8]} 29... Qc4 {[%clk 0:00:38.1]} 30. Qf1 {[%clk 0:01:13.8]}
30... Nb6 {[%clk 0:00:31.9]} 31. Ra7 {[%clk 0:01:01.8]} 31... Qc2 {[%clk
0:00:24.6]} 32. Qxb5 {[%clk 0:00:58.2]} 32... Rd1+ {[%clk 0:00:15.8]} 33. Kh2
{[%clk 0:00:58.2]} 33... e4+ {[%clk 0:00:16.5]} 34. Be5 {[%clk 0:00:51.6]} 34...
exf3 {[%clk 0:00:02.9]} 35. Qe8+ {[%clk 0:00:46.4]} 35... Kg7 {[%clk 0:00:02.8]}
36. Rxc7+ {[%clk 0:00:42.2]} 36... Qxc7 {[%clk 0:00:03.4]} 37. Bxc7 {[%clk
0:00:43.1]} 1-0

[Event "Late-Titled-Tuesday-Blitz-February-06-2024"]
[Site "Chess.com"]
[Date "2024.02.06"]
[Round "5"]
[White "brm72"]
[Black "Veleamater"]
[Result "1-0"]
[WhiteElo "2631"]
[BlackElo "2327"]
[TimeControl "180+1"]
[EndTime "14:54:53 PST"]
[Termination "brm72 won by resignation"]

1. d4 {[%clk 0:03:00.9]} 1... d6 {[%clk 0:02:59.7]} 2. g3 {[%clk 0:02:59.9]}
2... g6 {[%clk 0:02:59.7]} 3. Bg2 {[%clk 0:03:00.6]} 3... Bg7 {[%clk 0:03:00.1]}
4. c4 {[%clk 0:03:01.4]} 4... Nf6 {[%clk 0:03:00.9]} 5. Nc3 {[%clk 0:03:01.9]}
5... O-O {[%clk 0:03:01.7]} 6. e4 {[%clk 0:03:01.2]} 6... Nc6 {[%clk 0:03:02.2]}
7. Nf3 {[%clk 0:02:58.7]} 7... e5 {[%clk 0:03:03.1]} 8. d5 {[%clk 0:02:57.1]}
8... Ne7 {[%clk 0:03:03.1]} 9. O-O {[%clk 0:02:57]} 9... h6 {[%clk 0:03:01.4]}
10. Ne1 {[%clk 0:02:55]} 10... Ne8 {[%clk 0:03:01.1]} 11. Nd3 {[%clk 0:02:55.2]}
11... f5 {[%clk 0:03:01.6]} 12. f4 {[%clk 0:02:51.5]} 12... Kh7 {[%clk 0:03:01]}
13. Be3 {[%clk 0:02:43]} 13... Nf6 {[%clk 0:02:59.4]} 14. h3 {[%clk 0:02:34.5]}
14... Nh5 {[%clk 0:02:56.3]} 15. Kh2 {[%clk 0:02:31.5]} 15... Nxg3 {[%clk
0:02:34.8]} 16. Kxg3 {[%clk 0:02:29.6]} 16... exf4+ {[%clk 0:02:35.2]} 17. Bxf4
{[%clk 0:02:21.1]} 17... g5 {[%clk 0:02:35.4]} 18. Bd2 {[%clk 0:02:16.8]} 18...
f4+ {[%clk 0:02:35.6]} 19. Kh2 {[%clk 0:02:17.2]} 19... Ng6 {[%clk 0:02:35.4]}
20. Bf3 {[%clk 0:02:05.7]} 20... Qf6 {[%clk 0:02:34.1]} 21. Bg4 {[%clk
0:02:03.1]} 21... Qd4 {[%clk 0:02:30]} 22. Qe2 {[%clk 0:01:45.1]} 22... Bxg4
{[%clk 0:02:27.8]} 23. hxg4 {[%clk 0:01:46]} 23... Nh4 {[%clk 0:02:27.2]} 24.
Nb5 {[%clk 0:01:41.1]} 24... Qb6 {[%clk 0:02:23.1]} 25. Bc3 {[%clk 0:01:37.2]}
25... a6 {[%clk 0:02:19.6]} 26. Bxg7 {[%clk 0:01:35.6]} 26... Kxg7 {[%clk
0:02:19.5]} 27. Nc3 {[%clk 0:01:35.9]} 27... Rae8 {[%clk 0:02:11.7]} 28. Rae1
{[%clk 0:01:30.9]} 28... Qd4 {[%clk 0:02:08.8]} 29. e5 {[%clk 0:01:04.4]} 29...
dxe5 {[%clk 0:02:00.3]} 30. Qe4 {[%clk 0:01:01.3]} 30... Qb6 {[%clk 0:01:56.7]}
31. c5 {[%clk 0:00:56.3]} 31... Qf6 {[%clk 0:01:49.9]} 32. Nxe5 {[%clk
0:00:46.8]} 32... Ng6 {[%clk 0:01:45.7]} 33. Qxg6+ {[%clk 0:00:45.8]} 33... Qxg6
{[%clk 0:01:43.8]} 34. Nxg6 {[%clk 0:00:46.7]} 34... Kxg6 {[%clk 0:01:40]} 35.
Kg2 {[%clk 0:00:45.6]} 35... h5 {[%clk 0:01:34.5]} 36. Kf3 {[%clk 0:00:40.6]}
36... hxg4+ {[%clk 0:01:25.8]} 37. Kxg4 {[%clk 0:00:41.5]} 37... Rh8 {[%clk
0:01:25.5]} 38. Rxe8 {[%clk 0:00:29.7]} 38... Rxe8 {[%clk 0:01:24.1]} 39. Rh1
{[%clk 0:00:26.7]} 39... Re3 {[%clk 0:01:22.9]} 40. Rh3 {[%clk 0:00:23.7]} 40...
Re1 {[%clk 0:01:17.4]} 41. Rd3 {[%clk 0:00:20.4]} 41... Rg1+ {[%clk 0:01:05.6]}
42. Kf3 {[%clk 0:00:19]} 42... Kf5 {[%clk 0:01:01.2]} 43. Kf2 {[%clk 0:00:18.1]}
43... Rh1 {[%clk 0:01:00.8]} 44. d6 {[%clk 0:00:18.1]} 44... cxd6 {[%clk
0:00:54.9]} 45. cxd6 {[%clk 0:00:19]} 45... Rh2+ {[%clk 0:00:52.4]} 46. Kg1
{[%clk 0:00:16.4]} 46... Rh8 {[%clk 0:00:51.7]} 47. d7 {[%clk 0:00:17]} 47...
Rd8 {[%clk 0:00:51.6]} 48. Na4 {[%clk 0:00:17.6]} 48... Ke4 {[%clk 0:00:50.7]}
49. Nc5+ {[%clk 0:00:17.7]} 1-0

[Event "Late-Titled-Tuesday-Blitz-February-06-2024"]
[Site "Chess.com"]
[Date "2024.02.06"]
[Round "5"]
[White "Durarbayli"]
[Black "GMWSO"]
[Result "0-1"]
[WhiteElo "2914"]
[BlackElo "3092"]
[TimeControl "180+1"]
[EndTime "14:54:54 PST"]
[Termination "GMWSO won on time"]

1. e4 {[%clk 0:03:00.9]} 1... e5 {[%clk 0:02:58]} 2. Nf3 {[%clk 0:03:00.7]} 2...
Nc6 {[%clk 0:02:58.1]} 3. d4 {[%clk 0:03:00.4]} 3... exd4 {[%clk 0:02:57.8]} 4.
Nxd4 {[%clk 0:03:01.3]} 4... Nf6 {[%clk 0:02:55.9]} 5. Nxc6 {[%clk 0:03:01.4]}
5... bxc6 {[%clk 0:02:56.8]} 6. e5 {[%clk 0:03:02]} 6... Qe7 {[%clk 0:02:56.7]}
7. Qe2 {[%clk 0:03:02.5]} 7... Nd5 {[%clk 0:02:57.1]} 8. h4 {[%clk 0:03:03.2]}
8... a5 {[%clk 0:02:54.1]} 9. c4 {[%clk 0:02:25.8]} 9... Nb6 {[%clk 0:02:48]}
10. Nd2 {[%clk 0:02:15]} 10... a4 {[%clk 0:02:40.9]} 11. g3 {[%clk 0:02:06.3]}
11... g6 {[%clk 0:02:32.2]} 12. h5 {[%clk 0:01:58.8]} 12... Bg7 {[%clk
0:02:32.2]} 13. f4 {[%clk 0:01:59.2]} 13... O-O {[%clk 0:02:20.6]} 14. Qh2
{[%clk 0:01:28.7]} 14... g5 {[%clk 0:02:17.6]} 15. h6 {[%clk 0:01:27.8]} 15...
Bh8 {[%clk 0:02:17.4]} 16. Bd3 {[%clk 0:01:20.1]} 16... d5 {[%clk 0:01:53.2]}
17. cxd5 {[%clk 0:00:53.7]} 17... Nxd5 {[%clk 0:01:54.1]} 18. Ne4 {[%clk
0:00:47.7]} 18... Nb4 {[%clk 0:01:36.5]} 19. Bb1 {[%clk 0:00:45.5]} 19... Ba6
{[%clk 0:01:36.8]} 20. Be3 {[%clk 0:00:30.5]} 20... Nd3+ {[%clk 0:01:28]} 21.
Bxd3 {[%clk 0:00:30.4]} 21... Bxd3 {[%clk 0:01:28.9]} 22. Bc5 {[%clk 0:00:25.9]}
22... Qd7 {[%clk 0:01:05.7]} 23. O-O-O {[%clk 0:00:23.9]} 23... Qd5 {[%clk
0:01:04.4]} 24. Rxd3 {[%clk 0:00:11.5]} 24... Qxd3 {[%clk 0:01:05.3]} 25. Qc2
{[%clk 0:00:11]} 25... Rfd8 {[%clk 0:00:57.8]} 26. Nxg5 {[%clk 0:00:08.6]} 26...
f6 {[%clk 0:00:45.7]} 27. exf6 {[%clk 0:00:04.1]} 27... Bxf6 {[%clk 0:00:46.6]}
28. Ne4 {[%clk 0:00:04.3]} 28... Bh8 {[%clk 0:00:36]} 29. Qxd3 {[%clk
0:00:04.6]} 29... Rxd3 {[%clk 0:00:36.2]} 30. Kc2 {[%clk 0:00:05.5]} 30... Rd5
{[%clk 0:00:35.1]} 31. Ba3 {[%clk 0:00:02.1]} 31... Re8 {[%clk 0:00:29.4]} 32.
Re1 {[%clk 0:00:02.7]} 32... Re6 {[%clk 0:00:30]} 33. g4 {[%clk 0:00:02.3]}
33... Rxh6 {[%clk 0:00:29.2]} 34. Ng5 {[%clk 0:00:02.1]} 34... Rh2+ {[%clk
0:00:29.1]} 35. Kc1 {[%clk 0:00:02.2]} 35... Bf6 {[%clk 0:00:26.2]} 36. Re8+
{[%clk 0:00:02.3]} 36... Kg7 {[%clk 0:00:26.6]} 0-1

[Event "Late-Titled-Tuesday-Blitz-February-06-2024"]
[Site "Chess.com"]
[Date "2024.02.06"]
[Round "5"]
[White "rdarruda"]
[Black "Teidi96"]
[Result "1-0"]
[WhiteElo "2548"]
[BlackElo "2345"]
[TimeControl "180+1"]
[EndTime "14:54:58 PST"]
[Termination "rdarruda won by resignation"]

1. d4 {[%clk 0:02:54.4]} 1... Nf6 {[%clk 0:02:59.7]} 2. Nf3 {[%clk 0:02:53.8]}
2... d5 {[%clk 0:02:58.7]} 3. c4 {[%clk 0:02:52.9]} 3... e6 {[%clk 0:02:59]} 4.
Nc3 {[%clk 0:02:51]} 4... Be7 {[%clk 0:02:58.9]} 5. e3 {[%clk 0:02:51.1]} 5...
O-O {[%clk 0:02:58.9]} 6. Bd3 {[%clk 0:02:51.2]} 6... dxc4 {[%clk 0:02:57.4]} 7.
Bxc4 {[%clk 0:02:50.8]} 7... a6 {[%clk 0:02:58.2]} 8. O-O {[%clk 0:02:49.7]}
8... b5 {[%clk 0:02:58.3]} 9. Be2 {[%clk 0:02:48.8]} 9... Bb7 {[%clk 0:02:59]}
10. a4 {[%clk 0:02:47.7]} 10... b4 {[%clk 0:02:58.9]} 11. Nb1 {[%clk 0:02:46.3]}
11... c5 {[%clk 0:02:59.3]} 12. b3 {[%clk 0:02:46.2]} 12... Nbd7 {[%clk
0:02:59.3]} 13. Bb2 {[%clk 0:02:46.3]} 13... Qb8 {[%clk 0:02:59]} 14. Nbd2
{[%clk 0:02:44.4]} 14... cxd4 {[%clk 0:02:56.6]} 15. Nxd4 {[%clk 0:02:43.1]}
15... Rc8 {[%clk 0:02:52.8]} 16. Rc1 {[%clk 0:02:38.2]} 16... Rxc1 {[%clk
0:02:52.2]} 17. Qxc1 {[%clk 0:02:37.6]} 17... Qd6 {[%clk 0:02:44.3]} 18. Bf3
{[%clk 0:02:35.1]} 18... Rc8 {[%clk 0:02:43.5]} 19. Qb1 {[%clk 0:02:30]} 19...
Bxf3 {[%clk 0:02:41.5]} 20. N2xf3 {[%clk 0:02:29]} 20... Nc5 {[%clk 0:02:27.8]}
21. Rc1 {[%clk 0:02:24]} 21... Rd8 {[%clk 0:02:15.7]} 22. h3 {[%clk 0:02:18.1]}
22... Nce4 {[%clk 0:02:13.4]} 23. Rc6 {[%clk 0:02:06.2]} 23... Qd5 {[%clk
0:02:01.3]} 24. Rxa6 {[%clk 0:02:05.2]} 24... Rc8 {[%clk 0:01:53.1]} 25. Qf1
{[%clk 0:01:17.6]} 25... Nc5 {[%clk 0:01:42.9]} 26. Ra7 {[%clk 0:01:11.6]} 26...
Bf8 {[%clk 0:01:36]} 27. Qb5 {[%clk 0:01:10.2]} 27... Nd3 {[%clk 0:01:25.6]} 28.
Qxd3 {[%clk 0:01:06.2]} 28... e5 {[%clk 0:01:23]} 29. Qf5 {[%clk 0:00:54.5]}
29... exd4 {[%clk 0:01:21.9]} 30. Qxc8 {[%clk 0:00:53.2]} 30... dxe3 {[%clk
0:01:20.5]} 31. Ra8 {[%clk 0:00:46.5]} 31... Nd7 {[%clk 0:01:14.4]} 32. fxe3
{[%clk 0:00:43.4]} 32... Qd1+ {[%clk 0:01:11.2]} 33. Kh2 {[%clk 0:00:40.1]}
33... h6 {[%clk 0:01:08.8]} 34. Be5 {[%clk 0:00:37]} 34... Kh7 {[%clk
0:01:06.8]} 35. Bg3 {[%clk 0:00:28.8]} 35... Bd6 {[%clk 0:01:00.7]} 36. Qc4
{[%clk 0:00:25.4]} 36... Bxg3+ {[%clk 0:00:54.8]} 37. Kxg3 {[%clk 0:00:26.3]}
37... Qd6+ {[%clk 0:00:52.7]} 38. Qf4 {[%clk 0:00:26.9]} 38... Qg6+ {[%clk
0:00:43.8]} 39. Kh2 {[%clk 0:00:26.8]} 39... Nb6 {[%clk 0:00:38.3]} 40. Ne5
{[%clk 0:00:26.2]} 40... Qc2 {[%clk 0:00:34.2]} 41. Ra7 {[%clk 0:00:25.3]} 41...
Nd5 {[%clk 0:00:31.4]} 42. Qf3 {[%clk 0:00:22.9]} 42... Qxb3 {[%clk 0:00:29.5]}
43. Qxf7 {[%clk 0:00:20.7]} 1-0

[Event "Late-Titled-Tuesday-Blitz-February-06-2024"]
[Site "Chess.com"]
[Date "2024.02.06"]
[Round "5"]
[White "TheMagician"]
[Black "romulocardoso"]
[Result "1/2-1/2"]
[WhiteElo "2145"]
[BlackElo "2265"]
[TimeControl "180+1"]
[EndTime "14:55:01 PST"]
[Termination "Game drawn by repetition"]

1. f3 {[%clk 0:02:54.8]} 1... c5 {[%clk 0:02:59.6]} 2. Kf2 {[%clk 0:02:55]} 2...
Nc6 {[%clk 0:02:59.7]} 3. Kg3 {[%clk 0:02:55.3]} 3... d5 {[%clk 0:02:59.9]} 4.
e3 {[%clk 0:02:55.1]} 4... h5 {[%clk 0:02:59.3]} 5. Kf2 {[%clk 0:02:55]} 5... h4
{[%clk 0:02:59.5]} 6. Ke1 {[%clk 0:02:54.5]} 6... e5 {[%clk 0:02:59.6]} 7. d3
{[%clk 0:02:53.9]} 7... Bd6 {[%clk 0:02:58.7]} 8. e4 {[%clk 0:02:54.1]} 8... d4
{[%clk 0:02:58.2]} 9. f4 {[%clk 0:02:53.9]} 9... exf4 {[%clk 0:02:57.5]} 10. Nd2
{[%clk 0:02:51.7]} 10... g5 {[%clk 0:02:55.8]} 11. Nc4 {[%clk 0:02:50.9]} 11...
Be7 {[%clk 0:02:50]} 12. h3 {[%clk 0:02:50.9]} 12... b5 {[%clk 0:02:49.3]} 13.
Nd2 {[%clk 0:02:49.8]} 13... Be6 {[%clk 0:02:44]} 14. a4 {[%clk 0:02:50.7]}
14... a6 {[%clk 0:02:42.6]} 15. Be2 {[%clk 0:02:48.3]} 15... f5 {[%clk
0:02:28.3]} 16. Bh5+ {[%clk 0:02:42.9]} 16... Kf8 {[%clk 0:02:28]} 17. exf5
{[%clk 0:02:39.1]} 17... Bxf5 {[%clk 0:02:28.9]} 18. Bf3 {[%clk 0:02:36.8]}
18... Bd7 {[%clk 0:02:25.8]} 19. Ne4 {[%clk 0:02:30.5]} 19... b4 {[%clk
0:02:18.3]} 20. Bg4 {[%clk 0:02:23.4]} 20... Ne5 {[%clk 0:02:16.5]} 21. Bxd7
{[%clk 0:02:20.5]} 21... Qxd7 {[%clk 0:02:17.4]} 22. Nf3 {[%clk 0:02:17.7]}
22... Nxf3+ {[%clk 0:02:13.4]} 23. gxf3 {[%clk 0:02:15.2]} 23... Nh6 {[%clk
0:02:13.4]} 24. Qe2 {[%clk 0:02:12.1]} 24... Nf5 {[%clk 0:02:12.8]} 25. b3
{[%clk 0:02:04.7]} 25... Re8 {[%clk 0:02:08.6]} 26. Qg2 {[%clk 0:02:01.3]} 26...
Kf7 {[%clk 0:01:50]} 27. Kd1 {[%clk 0:01:57.8]} 27... Rhg8 {[%clk 0:01:49.9]}
28. Bd2 {[%clk 0:01:57.2]} 28... Qd5 {[%clk 0:01:41.3]} 29. Kc1 {[%clk
0:01:55.8]} 29... a5 {[%clk 0:01:39.2]} 30. Qg4 {[%clk 0:01:53.7]} 30... Bf6
{[%clk 0:01:36.6]} 31. Kb2 {[%clk 0:01:48.1]} 31... Ne3 {[%clk 0:01:28.8]} 32.
Qg1 {[%clk 0:01:33.7]} 32... Rc8 {[%clk 0:01:14.6]} 33. Kb1 {[%clk 0:01:21.8]}
33... c4 {[%clk 0:01:09]} 34. dxc4 {[%clk 0:01:21.5]} 34... Nxc4 {[%clk
0:01:09.9]} 35. bxc4 {[%clk 0:01:16.4]} 35... Rxc4 {[%clk 0:01:08.1]} 36. Qf1
{[%clk 0:01:14.2]} 36... Rgc8 {[%clk 0:01:03.7]} 37. Ra2 {[%clk 0:01:12]} 37...
b3 {[%clk 0:00:41.6]} 38. cxb3 {[%clk 0:01:10.2]} 38... Rb8 {[%clk 0:00:41]} 39.
Nd6+ {[%clk 0:00:59.6]} 39... Kg7 {[%clk 0:00:31]} 40. Qxc4 {[%clk 0:00:59]}
40... Rxb3+ {[%clk 0:00:30.6]} 41. Kc2 {[%clk 0:00:56.7]} 41... d3+ {[%clk
0:00:27.9]} 42. Kxb3 {[%clk 0:00:56.4]} 42... Qxd6 {[%clk 0:00:22.1]} 43. Ra3
{[%clk 0:00:45]} 43... Qb6+ {[%clk 0:00:20.3]} 44. Qb5 {[%clk 0:00:42.1]} 44...
Qe6+ {[%clk 0:00:19.8]} 45. Qc4 {[%clk 0:00:38.9]} 45... Qb6+ {[%clk 0:00:20.3]}
46. Qb5 {[%clk 0:00:39]} 46... Qe6+ {[%clk 0:00:19.9]} 47. Qc4 {[%clk
0:00:38.6]} 47... Qb6+ {[%clk 0:00:20.5]} 1/2-1/2

[Event "Late-Titled-Tuesday-Blitz-February-06-2024"]
[Site "Chess.com"]
[Date "2024.02.06"]
[Round "5"]
[White "spaski2004"]
[Black "gahryman"]
[Result "1-0"]
[WhiteElo "2948"]
[BlackElo "2676"]
[TimeControl "180+1"]
[EndTime "14:55:03 PST"]
[Termination "spaski2004 won on time"]

1. Nf3 {[%clk 0:03:00]} 1... d5 {[%clk 0:02:58.7]} 2. e3 {[%clk 0:02:59.8]} 2...
Nf6 {[%clk 0:02:58.3]} 3. c4 {[%clk 0:02:59.7]} 3... e6 {[%clk 0:02:57.6]} 4. b3
{[%clk 0:03:00.1]} 4... c5 {[%clk 0:02:54.9]} 5. Bb2 {[%clk 0:02:57.3]} 5... Nc6
{[%clk 0:02:55.2]} 6. cxd5 {[%clk 0:02:45.3]} 6... exd5 {[%clk 0:02:55.2]} 7.
Bb5 {[%clk 0:02:45.1]} 7... Bd6 {[%clk 0:02:53.2]} 8. O-O {[%clk 0:02:37.5]}
8... O-O {[%clk 0:02:52.7]} 9. d4 {[%clk 0:02:37]} 9... cxd4 {[%clk 0:02:26.7]}
10. Nxd4 {[%clk 0:02:37.9]} 10... Bd7 {[%clk 0:02:19.6]} 11. Nd2 {[%clk
0:02:27.8]} 11... a6 {[%clk 0:02:03.3]} 12. Bd3 {[%clk 0:02:23.1]} 12... Ne5
{[%clk 0:02:02.9]} 13. Bf5 {[%clk 0:02:22.3]} 13... Re8 {[%clk 0:01:56.2]} 14.
N2f3 {[%clk 0:02:15.4]} 14... Ne4 {[%clk 0:01:53.3]} 15. Rc1 {[%clk 0:01:34.1]}
15... Ng4 {[%clk 0:01:43.4]} 16. g3 {[%clk 0:01:26.4]} 16... g6 {[%clk
0:01:23.5]} 17. Bxd7 {[%clk 0:01:15.2]} 17... Qxd7 {[%clk 0:01:24.4]} 18. Ne2
{[%clk 0:01:14]} 18... Bc5 {[%clk 0:00:59.6]} 19. Rxc5 {[%clk 0:01:06.4]} 19...
Nxc5 {[%clk 0:00:51.9]} 20. Qd4 {[%clk 0:01:06.3]} 20... f6 {[%clk 0:00:50]} 21.
Qxc5 {[%clk 0:01:06.1]} 21... Rac8 {[%clk 0:00:49.5]} 22. Qd4 {[%clk 0:01:05.4]}
22... Rc2 {[%clk 0:00:49.4]} 23. Nf4 {[%clk 0:00:56.1]} 23... Re4 {[%clk
0:00:49.2]} 24. Qd3 {[%clk 0:00:41.4]} 24... Rxb2 {[%clk 0:00:47.1]} 25. Nxd5
{[%clk 0:00:37.6]} 25... Qf5 {[%clk 0:00:39.5]} 26. Nh4 {[%clk 0:00:31.9]} 26...
Qe5 {[%clk 0:00:16.4]} 27. h3 {[%clk 0:00:29.1]} 27... Nxf2 {[%clk 0:00:13.9]}
28. Rxf2 {[%clk 0:00:29.6]} 28... Qxg3+ {[%clk 0:00:13.6]} 29. Rg2 {[%clk
0:00:30.1]} 29... Qe1+ {[%clk 0:00:06.1]} 30. Kh2 {[%clk 0:00:29.3]} 30... Rxh4
{[%clk 0:00:02.9]} 31. Rxb2 {[%clk 0:00:23]} 31... Rxh3+ {[%clk 0:00:01.5]} 32.
Kxh3 {[%clk 0:00:22]} 32... Qh1+ {[%clk 0:00:01.7]} 33. Kg3 {[%clk 0:00:17.3]}
1-0

[Event "Late-Titled-Tuesday-Blitz-February-06-2024"]
[Site "Chess.com"]
[Date "2024.02.06"]
[Round "5"]
[White "trriinu"]
[Black "pooh2012"]
[Result "1-0"]
[WhiteElo "2253"]
[BlackElo "2513"]
[TimeControl "180+1"]
[EndTime "14:55:03 PST"]
[Termination "trriinu won on time"]

1. e4 {[%clk 0:02:59.2]} 1... e6 {[%clk 0:02:57.4]} 2. d4 {[%clk 0:02:58.4]}
2... d5 {[%clk 0:02:57.8]} 3. Nd2 {[%clk 0:02:59.1]} 3... a6 {[%clk 0:02:55.4]}
4. Ngf3 {[%clk 0:02:57]} 4... Nf6 {[%clk 0:02:42.6]} 5. e5 {[%clk 0:02:56.1]}
5... Nfd7 {[%clk 0:02:42.6]} 6. Bd3 {[%clk 0:02:55.3]} 6... c5 {[%clk
0:02:42.5]} 7. c3 {[%clk 0:02:55.8]} 7... Nc6 {[%clk 0:02:42.1]} 8. O-O {[%clk
0:02:56]} 8... Be7 {[%clk 0:02:41.6]} 9. Re1 {[%clk 0:02:44.1]} 9... O-O {[%clk
0:02:40.4]} 10. Nf1 {[%clk 0:02:43.2]} 10... cxd4 {[%clk 0:02:09.6]} 11. cxd4
{[%clk 0:02:41.4]} 11... b6 {[%clk 0:01:52.5]} 12. Bb1 {[%clk 0:02:18.9]} 12...
g6 {[%clk 0:01:27.7]} 13. Ne3 {[%clk 0:02:12.7]} 13... Re8 {[%clk 0:01:20.3]}
14. Ng4 {[%clk 0:02:11]} 14... Bf8 {[%clk 0:01:07.7]} 15. Bg5 {[%clk 0:02:04.5]}
15... Qc7 {[%clk 0:01:03.6]} 16. h4 {[%clk 0:02:02.2]} 16... Bb7 {[%clk
0:00:49.2]} 17. h5 {[%clk 0:02:01.6]} 17... Rac8 {[%clk 0:00:46.2]} 18. Nh6+
{[%clk 0:01:30]} 18... Kg7 {[%clk 0:00:43.9]} 19. Nh2 {[%clk 0:01:10.4]} 19...
Be7 {[%clk 0:00:25.1]} 20. Bxe7 {[%clk 0:00:29.3]} 20... Nxe7 {[%clk 0:00:24.4]}
21. N6g4 {[%clk 0:00:26.3]} 21... Nf5 {[%clk 0:00:22.9]} 22. Qd2 {[%clk
0:00:24]} 22... b5 {[%clk 0:00:19.7]} 23. Bxf5 {[%clk 0:00:21.7]} 23... exf5
{[%clk 0:00:19.5]} 24. Qh6+ {[%clk 0:00:21.4]} 24... Kh8 {[%clk 0:00:12.8]} 25.
Nf6 {[%clk 0:00:06.6]} 25... Nf8 {[%clk 0:00:09.8]} 26. Nf3 {[%clk 0:00:04.7]}
26... Qe7 {[%clk 0:00:04.4]} 27. Ng5 {[%clk 0:00:04.8]} 1-0